Cogmind - Beta 10.2 @@@ ROGUE MODE // 2020.12.17 @ 08:36:39 Player: Hermelin Result: Destroyed by 6D-0O6(z) with Makeshift Axe Performance ------------- Evolutions (4) 2000 Regions Visited (13) 2600 Robots Destroyed (135) 675 Value Destroyed (4781) 4781 Prototype IDs (29) 580 Alien Tech Used (0) 0 Bonus (1163) 1163 TOTAL SCORE: 11799 Bonus ------- High Alert Combat Kills 106 Follower Combat Kills 32 Entered Garrisons 400 Used RIF Installer 1000 Aligned with FarCom 300 Friendly Fire -675 Cogmind --------- Core Integrity 0/850 Matter 179/300 Energy 170/170 System Corruption 0% Temperature Cool (0) Movement Rolling (130) Ox3 Location -6/Zion Parts ------- > --- POWER (1) -------- Makeshift Power Source > --- PROPULSION (2) --- Armored Huge Wheel > --- UTILITY (10) ----- Improved Thermal Converter Advanced Heat Sink High-capacity Storage Unit High-capacity Storage Unit High-capacity Storage Unit Enhanced Optical Array Weapon Cycler Weapon Cycler Long-range Tractor Beam > --- WEAPON (2) ------- Makeshift Laser Makeshift Shrapnel Gun > --- INVENTORY (28) --- Makeshift Power Source Angular Momentum Engine Angular Momentum Engine Neutrino Core Light Neutrino Core Armored Huge Wheel High-capacity Matter Pod (0) Matter Compressor (250) Nanoactuators Nanoactuators Relay Coupler [NC] (29) Relay Coupler [Grunt] (33) Relay Coupler [Programmer] (86) Relay Coupler [Programmer] (72) Relay Coupler [Programmer] (53) Hacking Drone Bay (1/1) Flak Gun Heavy Battle Rifle Slug Cannon Remote Datajack Makeshift Hammer Makeshift Spear Dirty Bomb Trap Dirty Bomb Trap Dirty Bomb Trap Peak State ------------ > --- POWER ------------ Fission Core > --- PROPULSION ------- Armored Huge Wheel > --- UTILITY ---------- Advanced Heat Sink High-capacity Storage Unit High-capacity Storage Unit High-capacity Storage Unit Long-range Terrain Scanner Improved Light Armor Plating Powered Armor EX Chip 1 EX Chip 1 Improved System Shield > --- WEAPON ----------- High-powered Shock Rifle Guided Plasma Cannon > --- INVENTORY -------- Angular Momentum Engine Angular Momentum Engine Angular Momentum Engine Light Neutrino Core Armored Huge Wheel Armored Huge Wheel Armored Huge Wheel Power Amplifier Power Amplifier High-capacity Matter Pod Matter Compressor Weapon Cycler Relay Coupler [NC] Relay Coupler [Grunt] Long-range Tractor Beam Heavy Laser Plasma Rifle Proton Cannon YOLO Cannon Flak Gun Proton Missile Launcher Remote Datajack Powered Hammer Deploy-a-Sentry [Rating: 67] Favorites ----------- Power Ion Engine Engine Ion Engine Power Core Micro Nuclear Core Propulsion Wheel Wheel Wheel Hover Unit Backup Propulsion III Utility High-capacity Storage Unit Device Advanced Heat Sink Storage High-capacity Storage Unit Processor Enhanced Optical Array Hackware EX Chip 1 Protection Powered Armor Weapon Assault Rifle Energy Gun Gatling Laser Energy Cannon Guided Plasma Cannon Ballistic Gun Assault Rifle Ballistic Cannon Flak Cannon Launcher Rocket Launcher Impact Weapon Powered Hammer Slashing Weapon Katana Special Melee Weapon Improved Datajack Build | -11 -10 -10 -10 -9 -8 -7 -7 -7 -7 -6 -6 -6 -6 ------- Run | Scr Mat Min Exi Min Mat Fac Gar Fac Gar Fac Low Low Zio Slots Evolved 8 | . . . . . 4 2 . . . 2 . . . Power . | . . . . . . . . . . . . . . Propulsion . | . . . . . . . . . . . . . . Utility 8 | . . . . . 4 2 . . . 2 . . . Weapon . | . . . . . . . . . . . . . . Parts Attached 151 | 7 . 1 6 3 19 6 9 24 13 13 12 14 24 Power 22 | 1 . . 1 . 4 1 2 4 2 3 1 2 1 Engine 15 | 1 . . 1 . 2 1 2 3 . 1 1 2 1 Core 7 | . . . . . 2 . . 1 2 2 . . . Reactor . | . . . . . . . . . . . . . . Propulsion 15 | 2 . 1 1 1 4 1 . 1 1 . 1 1 1 Treads . | . . . . . . . . . . . . . . Leg . | . . . . . . . . . . . . . . Wheel 15 | 2 . 1 1 1 4 1 . 1 1 . 1 1 1 Hover . | . . . . . . . . . . . . . . Flight . | . . . . . . . . . . . . . . Utility 55 | 2 . . 1 . 7 3 5 7 1 8 4 4 13 Device 25 | . . . . . 3 1 2 3 . 3 3 2 8 Storage 9 | 2 . . 1 . 1 . 3 1 . . . . 1 Processor 1 | . . . . . . . . . . . . 1 . Hackware 7 | . . . . . 3 2 . 1 . 1 . . . Protection 13 | . . . . . . . . 2 1 4 1 1 4 Artifact . | . . . . . . . . . . . . . . Weapon 59 | 2 . . 3 2 4 1 2 12 9 2 6 7 9 Energy Gun 14 | . . . . . 2 . . 4 2 1 3 1 1 Energy Cannon 6 | . . . 1 . . . . . . . 2 1 2 Ballistic Gun 24 | 2 . . 1 . 1 . 1 5 5 1 1 4 3 Ballistic Cannon 3 | . . . . . 1 1 . . . . . . 1 Launcher 7 | . . . 1 1 . . 1 1 1 . . 1 1 Special Weapon . | . . . . . . . . . . . . . . Impact Weapon 2 | . . . . . . . . . 1 . . . 1 Slashing Weapon 2 | . . . . 1 . . . 1 . . . . . Piercing Weapon . | . . . . . . . . . . . . . . Special Melee Weapon 1 | . . . . . . . . 1 . . . . . Unidentified Prototypes 3 | . . . . . . . . 2 . . . . 1 Parts Lost 60 | . . . 4 1 8 2 5 2 6 4 8 7 13 Power 7 | . . . 1 . 1 1 . . 2 . . 1 1 Propulsion 9 | . . . 1 1 3 . 1 . 1 . 1 . 1 Utility 22 | . . . . . 2 1 2 1 1 2 4 3 6 Weapon 22 | . . . 2 . 2 . 2 1 2 2 3 3 5 Highest Loss Streak 6 | . . . 3 1 5 2 4 1 3 3 5 6 5 Average Slot Usage (%) 88 | . 100 100 82 71 85 87 91 93 91 92 91 86 89 Engine 7 | . 14 14 14 14 6 6 7 3 5 4 2 6 5 Core 1 | . . . . . 2 . . 3 1 2 3 . . Wheel 13 | . 28 28 28 14 15 13 9 7 7 6 6 5 6 Device 10 | . . . . . 9 15 15 9 7 17 21 16 21 Storage 18 | . 28 28 16 14 9 7 11 20 23 20 20 20 23 Hackware 14 | . . . . . 26 29 30 23 23 20 20 17 . Protection 3 | . . . . . . . . 6 7 7 4 3 10 Energy Gun 2 | . . . . . 5 . . 5 5 1 6 . . Energy Cannon 1 | . . . 4 1 . . . . . . 4 . 2 Ballistic Gun 10 | . 28 28 18 . 1 7 6 8 8 11 1 11 8 Ballistic Cannon 1 | . . . . . 8 5 5 . . . . . 1 Naked Turns . | . . . . . . . . . . . . . . Heaviest Build 147 | 17 17 17 95 99 97 104 104 136 139 135 137 129 147 Greatest Support 28 | 20 20 20 20 20 22 22 22 28 28 28 28 28 28 Greatest Overweight (x) 9 | . . . 9 9 9 4 6 9 4 4 4 4 5 Average Overweight (x) 3 | . . . 2 8 4 4 5 4 4 4 4 4 4 Largest Inventory Capacity 28 | 8 8 8 24 24 24 24 24 28 28 28 28 28 28 Average Capacity 23 | 6 8 8 21 24 24 24 20 25 28 28 28 28 28 Most Carried 28 | 7 8 8 24 24 24 24 24 28 28 28 28 28 28 Average Carried 22 | 3 7 7 16 23 20 22 19 25 26 26 27 25 27 Final Capacity 28 | 8 8 8 24 24 24 24 20 28 28 28 28 28 28 Final Carried 28 | 7 8 8 24 24 24 24 20 28 25 28 24 28 26 Class Distribution -------------------- 54% | Hauler-Mutant 33% | Scavenger-Mutant 10% | Mutant Dominant Class ---------------- Mutant | -10/Materials Mutant | -10/Mines Hauler-Mutant | -10/Exiles Hauler-Mutant | -9/Mines Scavenger-Mutant | -8/Materials Scavenger-Mutant | -7/Factory Scavenger-Mutant | -7/Garrison Hauler-Mutant | -7/Factory Hauler-Mutant | -7/Garrison Hauler-Mutant | -6/Factory Hauler-Mutant | -6/Lower Caves Hauler-Mutant | -6/Lower Caves Scavenger-Mutant | -6/Zion Resources | -11 -10 -10 -10 -9 -8 -7 -7 -7 -7 -6 -6 -6 -6 ----------- Run | Scr Mat Min Exi Min Mat Fac Gar Fac Gar Fac Low Low Zio Matter Collected 4706 | 306 84 46 241 48 906 99 497 368 322 560 227 296 706 Remotely 204 | . . . . . . . . . . . . . 204 Salvage Created 4776 | 153 137 66 135 127 567 99 296 663 591 583 582 331 446 Parts 260 | 13 9 7 7 7 38 5 16 34 16 23 16 20 49 Haulers Intercepted 5 | . 1 . . . 1 . . 3 . . . . . Recyclers Shooed 3 | . . . . . 1 . . . . 2 . . . Parts Field Recycled . | . . . . . . . . . . . . . . Retrieved Matter . | . . . . . . . . . . . . . . Parts Self-Destructed 16 | . . . . . . . . . . . 8 8 . Prevented 12 | . . . . . . . . . . . 7 5 . Kills | -11 -10 -10 -10 -9 -8 -7 -7 -7 -7 -6 -6 -6 -6 ------- Run | Scr Mat Min Exi Min Mat Fac Gar Fac Gar Fac Low Low Zio Combat Hostiles Destroyed 97 | . 4 3 4 4 15 2 12 14 13 9 9 6 2 Guns 61 | . 4 3 . . 6 1 5 14 11 9 5 2 1 Cannons 18 | . . . 1 1 9 1 3 . . . 1 1 1 AOE 16 | . . . 3 3 . . 4 . 2 . 1 3 . Classes Destroyed 19 | 2 3 . 3 1 4 . 1 1 . . . 3 1 Worker 1 | . . . . . 1 . . . . . . . . Builder 1 | . . . . . 1 . . . . . . . . Tunneler 4 | 4 . . . . . . . . . . . . . Hauler 5 | . 1 . . . 1 . . 3 . . . . . Recycler 2 | 1 . . . . . . . . . 1 . . . Minesweeper 1 | . . . . . . . . . . . . 1 . Operator 1 | . . . . . 1 . . . . . . . . Turret 1 | . . . 1 . . . . . . . . . . Swarmer 27 | . 3 2 . . . . 7 6 3 3 . 3 . Grunt 41 | . 1 1 . 3 9 1 4 5 6 3 8 . . Duelist 2 | . . . . 1 1 . . . . . . . . Sentry 12 | . . . . . 5 1 . 2 3 1 . . . Hunter 1 | . . . . . . . 1 . . . . . . Programmer 5 | . . . . . . . . 1 1 2 1 . . Behemoth 1 | . . . . . . . . . . . . 1 . Zionite 24 | . . . 1 . . . . . . . . . 23 Tinkerer 1 | . . . . . . . . . . . . . 1 Master Thief 2 | . . . . . . . . . . . . 2 . Assembled 6 | . . . 6 . . . . . . . . . . Marauder 2 | . . . . . . . . . . . . . 2 Best Kill Streak 7 | 4 4 2 3 2 5 2 5 3 5 3 4 3 7 Combat Bots Only 5 | . 3 2 3 2 5 2 5 3 5 3 4 3 1 Max Kills in Single Turn 3 | 1 1 1 3 2 1 1 3 2 1 1 1 1 1 Gunslinging . | . . . . . . . . . . . . . . Exploded 3 | . . . 2 2 . . 3 . 1 . 1 1 . Melee . | . . . . . . . . . . . . . . Uniques/NPCs Destroyed 4 | . . . 4 . . . . . . . . . . EX-HEX (-10/Exiles) 8R-AWN (-10/Exiles) EX-BIN (-10/Exiles) EX-DEC (-10/Exiles) Combat | -11 -10 -10 -10 -9 -8 -7 -7 -7 -7 -6 -6 -6 -6 -------- Run | Scr Mat Min Exi Min Mat Fac Gar Fac Gar Fac Low Low Zio Damage Taken 10412 | . 158 62 634 81 1068 212 718 925 1190 1527 907 695 2235 Core 1569 | . 43 36 108 22 112 11 141 133 94 210 199 100 360 Absorbed by Shields 67 | . . . . . . 6 61 . . . . . . Core Remaining (%) 60 | 100 . . . 16 79 . . . 45 . . . . Volleys Fired 465 | 6 14 6 59 7 70 5 25 34 40 33 32 39 95 Largest 2 | 2 2 2 2 1 2 2 2 2 2 2 2 2 2 Hottest 138 | 40 40 40 120 120 109 69 69 108 108 88 138 129 123 Shots Fired 788 | 12 28 12 60 7 121 10 39 68 74 65 55 61 176 Gun 528 | 12 28 12 25 . 51 5 22 68 68 65 44 46 82 Cannon 230 | . . . 31 4 70 5 15 . . . 11 7 87 Launcher 30 | . . . 4 3 . . 2 . 6 . . 8 7 Special . | . . . . . . . . . . . . . . Kinetic 515 | 12 28 12 25 . 87 10 37 34 38 57 9 32 134 Thermal 198 | . . . 31 4 34 . . 34 30 . 16 14 35 Explosive 9 | . . . 4 3 . . 2 . . . . . . Electromagnetic 66 | . . . . . . . . . 6 8 30 15 7 Robot Hit Streak 25 | 7 5 5 18 24 25 7 6 13 13 19 12 12 10 Robot Miss Streak 16 | 1 4 2 2 . 6 3 4 8 7 16 3 5 6 Penetration Max 1 | . . . . . . . . 1 . . . . . Secondary Targets 5 | . 2 . . . . . . . . 2 1 . . Max Gunslinging Chain 1 | . 1 . . . . . . . . 1 1 . . Shots Hit Robots 558 | 7 15 5 35 6 94 9 29 50 64 49 41 52 102 Core Hits 386 | 6 8 3 24 6 64 9 27 39 54 53 21 31 41 Critical Hits 5 | 1 . . 1 . . . . . . . . . 3 Critical Kills 2 | 1 . . . . . . . . . . . . 1 Critical Parts Destroyed 1 | . . . . . . . . . . . . . 1 Melee Attacks 7 | . . . . . 1 . . 3 1 . . . 2 Impact 3 | . . . . . . . . . 1 . . . 2 Slashing 3 | . . . . . 1 . . 2 . . . . . Piercing . | . . . . . . . . . . . . . . Sneak Attacks 2 | . . . . . . . . 1 . . . . 1 Combat Hostiles . | . . . . . . . . . . . . . . Follow-up Attacks . | . . . . . . . . . . . . . . Damage Inflicted 13705 | 99 190 55 1646 411 1523 155 744 984 1450 1189 1258 1223 2778 Guns 7830 | 99 190 55 248 . 635 88 332 984 1302 1189 774 697 1237 Cannons 3987 | . . . 1004 145 831 67 189 . . . 207 243 1301 Explosions 1771 | . . . 394 266 57 . 223 . 148 . 277 283 123 Melee 117 | . . . . . . . . . . . . . 117 Ramming . | . . . . . . . . . . . . . . Kinetic 6922 | 99 190 55 248 . 1095 155 521 364 618 1042 128 488 1919 Thermal 4514 | . . . 1004 226 371 . . 620 684 . 564 426 619 Explosive 859 | . . . 394 185 57 . 223 . . . . . . Electromagnetic 1293 | . . . . . . . . . 148 147 566 309 123 Impact 117 | . . . . . . . . . . . . . 117 Slashing . | . . . . . . . . . . . . . . Piercing . | . . . . . . . . . . . . . . Highest Corruption 4 | . . . . . . . . 1 3 3 4 4 4 Average Corruption 2 | . . . . . . . . 1 2 2 3 4 4 Corruption Purged . | . . . . . . . . . . . . . . Effects 50 | . . . . . . . . 4 7 7 16 13 3 Message Errors 13 | . . . . . . . . 2 2 2 3 4 . Matter Fused 6 | . . . . . . . . . . . 2 3 1 Heat Flow Errors 5 | . . . . . . . . . 1 1 2 1 . Energy Discharges 4 | . . . . . . . . 1 . 1 1 . 1 Parts Rejected 1 | . . . . . . . . . . . . 1 . Data Loss (minor) 7 | . . . . . . . . . 2 . 3 1 1 Targeting Errors 11 | . . . . . . . . 1 2 2 3 3 . Weapon Failures 3 | . . . . . . . . . . 1 2 . . Overload Shots . | . . . . . . . . . . . . . . Overflow Damage 234 | . . . 95 31 4 . 23 . . . . 38 43 Projectiles 132 | . . . 95 . 3 . . . . . . 18 16 Explosions 75 | . . . . 31 1 . 23 . . . . 20 . Melee 27 | . . . . . . . . . . . . . 27 Knockbacks 53 | . . . . . 31 . 9 . . . . . 13 Impact 1 | . . . . . . . . . . . . . 1 Kinetic 44 | . . . . . 24 . 8 . . . . . 12 Secondary 8 | . . . . . 7 . 1 . . . . . . Self-Inflicted Damage 230 | . . . . 48 54 . 31 . 92 . . 5 . Shots 11 | . . . . 2 1 . 1 . 6 . . 1 . Rammed . | . . . . . . . . . . . . . . Targets Rammed . | . . . . . . . . . . . . . . Kicked . | . . . . . . . . . . . . . . Crushed . | . . . . . . . . . . . . . . Highest Temperature 359 | . 6 2 320 255 35 . 33 40 254 253 208 359 243 Average Temperature 78 | . 6 2 113 148 11 . 11 10 101 121 46 98 66 Received Heat Transfer 2180 | . 18 27 20 18 486 56 250 135 378 396 246 96 54 Effects 2 | . . . . 1 . . . . . . . 1 . Energy Bleed 1 | . . . . 1 . . . . . . . . . Interference 1 | . . . . . . . . . . . . 1 . Siege Activations . | . . . . . . . . . . . . . . Robots Corrupted 2 | . . . . . . . . . . . 2 . . Combat Hostiles 2 | . . . . . . . . . . . 2 . . Parts Fried 7 | . . . . . . . . . . 1 5 1 . Impact Corruptions 1 | . . . . . . . . . . . . . 1 Robots Melted 1 | . . . 1 . . . . . . . . . . Combat Hostiles . | . . . . . . . . . . . . . . Parts Melted 35 | . . . 13 . 1 . . 4 9 . 4 2 2 Heat Transferred 8783 | . . . 2000 420 888 . . 1375 1550 . 694 869 987 Parts Sabotaged 2 | . . . . . . . . . . 2 . . . Parts Stolen 4 | . . . . . . . . . . . . 4 . Parts Stripped . | . . . . . . . . . . . . . . Power Chain Reactions 2 | . . . . . . . . . . . 1 1 . Missiles Intercepted . | . . . . . . . . . . . . . . Alert | -11 -10 -10 -10 -9 -8 -7 -7 -7 -7 -6 -6 -6 -6 ------- Run | Scr Mat Min Exi Min Mat Fac Gar Fac Gar Fac Low Low Zio Peak Influence 472 | 25 154 214 . 145 366 221 451 250 442 472 . . . Initial 236 | . 16 60 . . 56 165 154 236 72 231 . . . Average 182 | 10 59 159 . 56 154 175 330 142 258 303 . . . Maximum Alert Level 2 | . . 1 . . 1 1 2 1 2 2 . . . Low Security (%) 61 | 100 100 54 . 100 83 85 9 82 35 . . . . Level 1 31 | . . 45 . . 16 14 66 17 40 85 . . . Level 2 6 | . . . . . . . 24 . 23 14 . . . Level 3 . | . . . . . . . . . . . . . . Level 4 . | . . . . . . . . . . . . . . Level 5 . | . . . . . . . . . . . . . . High Security . | . . . . . . . . . . . . . . Max Security . | . . . . . . . . . . . . . . Squads Dispatched 11 | . . . . . 4 1 . 4 . 2 . . . Investigation 2 | . . . . . 2 . . . . . . . . Extermination 3 | . . . . . . . . 2 . 1 . . . Reinforcement 4 | . . . . . 2 . . 2 . . . . . Assault 1 | . . . . . . . . . . 1 . . . Garrison 1 | . . . . . . 1 . . . . . . . Intercept . | . . . . . . . . . . . . . . Construction Impeded 1 | . . . . . 1 . . . . . . . . Haulers Reinforced 1 | . . . . . . . . 1 . . . . . Stealth | -11 -10 -10 -10 -9 -8 -7 -7 -7 -7 -6 -6 -6 -6 --------- Run | Scr Mat Min Exi Min Mat Fac Gar Fac Gar Fac Low Low Zio Distress Signals 4 | . 2 . . . . . . 2 . . . . . Communications Jammed . | . . . . . . . . . . . . . . Distress Signals . | . . . . . . . . . . . . . . Times Spotted 173 | . 6 5 22 3 18 2 11 17 14 16 8 9 42 Peak Tracking Total 8 | . 3 3 8 2 4 2 6 4 6 5 4 5 7 Tactical Retreats 35 | . 1 1 12 . 1 . 1 . 4 1 . . 14 Traps | -11 -10 -10 -10 -9 -8 -7 -7 -7 -7 -6 -6 -6 -6 ------- Run | Scr Mat Min Exi Min Mat Fac Gar Fac Gar Fac Low Low Zio Traps Triggered 10 | . . . . . . . 3 2 4 1 . . . Indirectly . | . . . . . . . . . . . . . . Trap Hack Attempts . | . . . . . . . . . . . . . . Triggered . | . . . . . . . . . . . . . . Disarmed . | . . . . . . . . . . . . . . Reprogrammed . | . . . . . . . . . . . . . . Reused 4 | . . . 3 . . . . . . . . . 1 Traps Extracted . | . . . . . . . . . . . . . . Installed 6 | . . . 3 . . . . . . . . . 3 Triggered . | . . . . . . . . . . . . . . Machines | -11 -10 -10 -10 -9 -8 -7 -7 -7 -7 -6 -6 -6 -6 ---------- Run | Scr Mat Min Exi Min Mat Fac Gar Fac Gar Fac Low Low Zio Machines Disabled 15 | . . . 5 3 3 . 1 . 1 . . . 2 Max in Single Turn 3 | . . . 1 3 2 . 1 . 1 . . . 1 Garrison Relay 2 | . . . . . . . 1 . 1 . . . . Machines Sabotaged . | . . . . . . . . . . . . . . Garrisons Compromised . | . . . . . . . . . . . . . . Overloaded Fab Kills . | . . . . . . . . . . . . . . Fab Network Shutdowns . | . . . . . . . . . . . . . . Hacking | -11 -10 -10 -10 -9 -8 -7 -7 -7 -7 -6 -6 -6 -6 --------- Run | Scr Mat Min Exi Min Mat Fac Gar Fac Gar Fac Low Low Zio Machines Accessed 22 | . 3 . 2 . 5 2 . 8 . 2 . . . Terminals 10 | . 3 . . . 3 . . 3 . 1 . . . Fabricators 3 | . . . . . . . . 3 . . . . . Repair Stations 2 | . . . . . . 1 . 1 . . . . . Recycling Units 2 | . . . . . 2 . . . . . . . . Scanalyzers 1 | . . . . . . . . . . 1 . . . Garrison Access 2 | . . . . . . 1 . 1 . . . . . Total Hacks 87 | . 9 . 2 . 22 7 . 35 . 12 . . . Successful 54 | . 5 . 2 . 14 5 . 20 . 8 . . . Failed 32 | . 3 . . . 8 2 . 15 . 4 . . . Catastrophic . | . . . . . . . . . . . . . . Database Lockouts 1 | . 1 . . . . . . . . . . . . Manual 35 | . 6 . 1 . 7 2 . 17 . 2 . . . Terminals 53 | . 9 . . . 18 . . 20 . 6 . . . Fabricators 9 | . . . . . . . . 9 . . . . . Repair Stations 7 | . . . . . . 4 . 3 . . . . . Recycling Units 4 | . . . . . 4 . . . . . . . . Scanalyzers 6 | . . . . . . . . . . 6 . . . Garrison Access 6 | . . . . . . 3 . 3 . . . . . Terminal Hacks 24 | . 4 . 2 . 8 . . 8 . 2 . . . Record 1 | . . . 1 . . . . . . . . . . Part Schematic 2 | . . . . . . . . 2 . . . . . Robot Schematic 1 | . . . . . 1 . . . . . . . . Robot Analysis 3 | . 2 . . . 1 . . . . . . . . Prototype ID Bank 1 | . . . . . 1 . . . . . . . . Branch Access Points 1 | . 1 . . . . . . . . . . . . Machine Index 1 | . . . . . . . . 1 . . . . . Terminal Index 1 | . . . . . . . . 1 . . . . . Fabricator Index 1 | . . . . . . . . 1 . . . . . Garrison Index 1 | . . . . . . . . 1 . . . . . Alert Level 1 | . . . . . 1 . . . . . . . . Unreport Threat 2 | . . . . . 1 . . 1 . . . . . Locate Traps 4 | . 1 . . . 2 . . . . 1 . . . Hauler Manifests 1 | . . . . . 1 . . . . . . . . Zone Layout 2 | . . . . . . . . 1 . 1 . . . EX-Prototype ID Bank 1 | . . . 1 . . . . . . . . . . Fabricator Hacks 5 | . . . . . . . . 5 . . . . . Load Schematic 2 | . . . . . . . . 2 . . . . . Build 3 | . . . . . . . . 3 . . . . . Repair Station Hacks 5 | . . . . . . 4 . 1 . . . . . Scan Component 3 | . . . . . . 2 . 1 . . . . . Repair 2 | . . . . . . 2 . . . . . . . Recycling Unit Hacks 2 | . . . . . 2 . . . . . . . . Report Inventory 2 | . . . . . 2 . . . . . . . . Scanalyzer 5 | . . . . . . . . . . 5 . . . Insert Component 3 | . . . . . . . . . . 3 . . . Analyze 2 | . . . . . . . . . . 2 . . . Garrison Access Hacks 2 | . . . . . . 1 . 1 . . . . . Unlock Access 2 | . . . . . . 1 . 1 . . . . . Unauthorized Hacks 11 | . 1 . . . 4 . . 5 . 1 . . . Terminals 5 | . 1 . . . 2 . . 1 . 1 . . . Botnet 4 | . 1 . . . 1 . . 1 . 1 . . . Operators 1 | . . . . . 1 . . . . . . . . Fabricators 3 | . . . . . . . . 3 . . . . . Prioritize 2 | . . . . . . . . 2 . . . . . Siphon 1 | . . . . . . . . 1 . . . . . Repair Stations . | . . . . . . . . . . . . . . Recycling Units 2 | . . . . . 2 . . . . . . . . Tunnel 2 | . . . . . 2 . . . . . . . . Scanalyzers . | . . . . . . . . . . . . . . Garrison Access 1 | . . . . . . . . 1 . . . . . Reprogram 1 | . . . . . . . . 1 . . . . . Data Cores Recovered . | . . . . . . . . . . . . . . Used . | . . . . . . . . . . . . . . Hacking Detections 17 | . 3 . . . 3 1 . 8 . 2 . . . Full Trace Events . | . . . . . . . . . . . . . . Feedback Events . | . . . . . . . . . . . . . . Feedback Blocked . | . . . . . . . . . . . . . . Robot Schematics Acquired 1 | . . . . . 1 . . . . . . . . Robots Built . | . . . . . . . . . . . . . . Matter . | . . . . . . . . . . . . . . Time . | . . . . . . . . . . . . . . Total Robot Build Rating . | . . . . . . . . . . . . . . Part Schematics Acquired 4 | . . . . . . . . 2 . 2 . . . Parts Built 6 | . . . . . . . . 6 . . . . . Matter 420 | . . . . . . . . 420 . . . . . Time 168 | . . . . . . . . 168 . . . . . Total Part Build Rating 24 | . . . . . . . . 24 . . . . . Parts Repaired 2 | . . . . . . 2 . . . . . . . Time 70 | . . . . . . 70 . . . . . . . Parts Recycled . | . . . . . . . . . . . . . . Recycled Matter . | . . . . . . . . . . . . . . Retrieved Matter . | . . . . . . . . . . . . . . Retrieved Components . | . . . . . . . . . . . . . . Parts Scanalyzed 3 | . . . . . . . . . . 3 . . . Part Schematics Acquired 2 | . . . . . . . . . . 2 . . . Parts Damaged . | . . . . . . . . . . . . . . Bothacking | -11 -10 -10 -10 -9 -8 -7 -7 -7 -7 -6 -6 -6 -6 ------------ Run | Scr Mat Min Exi Min Mat Fac Gar Fac Gar Fac Low Low Zio Used RIF Installer 2 | . . . . . . . 1 . 1 . . . . Patrol Navigation 1 | . . . . . . . . . 1 . . . . Robots Hacked 1 | . . . . . . . . 1 . . . . . Non-combat 1 | . . . . . . . . 1 . . . . . Combat . | . . . . . . . . . . . . . . Robot Hacks Applied 1 | . . . . . . . . 1 . . . . . streamctrl_low 1 | . . . . . . . . 1 . . . . . Relay Couplers Released 10 | . . . . . . . 5 . 5 . . . . Machine Destruction 10 | . . . . . . . 5 . 5 . . . . Attached 1 | . . . . . . . . 1 . . . . . Robots Rewired . | . . . . . . . . . . . . . . Allies Hacked . | . . . . . . . . . . . . . . Hacks Repelled . | . . . . . . . . . . . . . . Allies | -11 -10 -10 -10 -9 -8 -7 -7 -7 -7 -6 -6 -6 -6 -------- Run | Scr Mat Min Exi Min Mat Fac Gar Fac Gar Fac Low Low Zio Total Allies 4 | . . 3 . . . . . 1 . . . . . Largest Group 3 | . . 3 3 . . . . 1 . . . . . Highest-Rated Group 40 | . . 40 40 . . . . 20 . . . . . Highest-Rated Ally 20 | . . 16 16 . . . . 20 . . . . . Total Orders 10 | . . . 9 . . . . 1 . . . . . STAY 6 | . . . 6 . . . . . . . . . . FOLLOW 3 | . . . 3 . . . . . . . . . . AID 1 | . . . . . . . . 1 . . . . . Ally Attacks 43 | . . 12 31 . . . . . . . . . . Total Damage 776 | . . 137 639 . . . . . . . . . . Kills 4 | . . 2 2 . . . . . . . . . . Allies Corrupted . | . . . . . . . . . . . . . . Allies Melted . | . . . . . . . . . . . . . . Turrets Deployed 3 | . . . 3 . . . . . . . . . . Intel | -11 -10 -10 -10 -9 -8 -7 -7 -7 -7 -6 -6 -6 -6 ------- Run | Scr Mat Min Exi Min Mat Fac Gar Fac Gar Fac Low Low Zio Robot Analysis Total 3 | . 2 . . . 1 . . . . . . . . Derelict Logs Recovered 5 | . . 2 . . . . . . . . 1 2 . Drone Launches . | . . . . . . . . . . . . . . Drone Recoveries . | . . . . . . . . . . . . . . Exploration | -11 -10 -10 -10 -9 -8 -7 -7 -7 -7 -6 -6 -6 -6 ------------- Run | Scr Mat Min Exi Min Mat Fac Gar Fac Gar Fac Low Low Zio Turns Passed 8344 | 91 235 342 1400 378 612 210 532 1366 479 478 641 650 930 Spaces Moved 4838 | 67 149 351 1051 210 260 92 238 787 201 222 388 379 443 Core 1 | 1 . . . . . . . . . . . . . Treads . | . . . . . . . . . . . . . . Legs . | . . . . . . . . . . . . . . Wheels 4837 | 66 149 351 1051 210 260 92 238 787 201 222 388 379 443 Hover . | . . . . . . . . . . . . . . Flight . | . . . . . . . . . . . . . . Fastest Speed 50 | 50 80 80 80 120 120 125 100 140 140 140 140 140 140 Average Speed 127 | 79 80 80 109 168 128 125 137 144 140 140 140 140 140 Slowest Speed 180 | 80 80 80 170 170 170 125 150 180 140 140 140 140 150 Overloaded Moves . | . . . . . . . . . . . . . . Propulsion Burnouts . | . . . . . . . . . . . . . . Robots Hopped . | . . . . . . . . . . . . . . Cave-ins Triggered . | . . . . . . . . . . . . . . Exploration Rate (%) 40 | 4 31 82 89 67 32 4 34 23 34 5 68 58 30 Regions Visited 13 Branch Regions 6 Pre-discovered Areas 3 | . . . 1 . 2 . . . . . . . . Known Exits Taken 3 | . 1 . . . . 1 . 1 . . . . . Unknown Exits Taken 8 | 1 . 1 1 1 1 . . . . 1 1 1 . Scrap Searched 4 | . . 1 . 1 . . . . . . 1 1 . Spaces Dug 2 | . . . . . . . . 2 . . . . . Terrain Destroyed 148 | . . . 27 27 58 . 11 2 . . 8 2 13 Melee 2 | . . . . . . . . 2 . . . . . Projectile 13 | . . . . . . . . . . . . . 13 AOE 133 | . . . 27 27 58 . 11 . . . 8 2 . Terrain Rammed . | . . . . . . . . . . . . . . Walls Destroyed . | . . . . . . . . . . . . . . Machines Disabled . | . . . . . . . . . . . . . . Actions | -11 -10 -10 -10 -9 -8 -7 -7 -7 -7 -6 -6 -6 -6 --------- Run | Scr Mat Min Exi Min Mat Fac Gar Fac Gar Fac Low Low Zio Total 6319 | 89 239 401 1247 229 417 176 414 950 315 324 442 452 624 Wait 524 | 1 68 36 86 2 24 69 90 54 20 38 3 . 33 Move 4825 | 66 148 350 1050 209 259 92 236 786 200 221 387 378 443 Hop . | . . . . . . . . . . . . . . Pick Up 189 | 8 5 4 30 5 35 4 24 20 6 12 6 16 14 Fast Attach 40 | 7 . . 1 . 5 2 3 7 . 5 1 4 5 Attach 62 | . . . 4 3 10 4 3 3 6 5 7 6 11 Detach 8 | . . . 1 . 1 . 1 2 . . . 1 2 Swap 49 | . . 1 1 . 4 . 3 14 7 3 4 4 8 Drop 91 | 1 4 4 12 3 8 . 8 27 3 7 2 4 8 Fire 465 | 6 14 6 59 7 70 5 25 34 40 33 32 39 95 Melee 7 | . . . . . 1 . . 3 1 . . . 2 Ram . | . . . . . . . . . . . . . . Kick . | . . . . . . . . . . . . . . Crush . | . . . . . . . . . . . . . . Escape Stasis 53 | . . . . . . . 21 . 32 . . . . Rewire . | . . . . . . . . . . . . . . Trap 6 | . . . 3 . . . . . . . . . 3 Miscellaneous . | . . . . . . . . . . . . . . Route ------- -11/Scrapyard -10/Materials -10/Mines (discovered 3 exits: [*Mat x2] / *Exi) -10/Exiles (discovered 2 exits: [*Min x2]) -9/Mines -8/Materials -7/Factory -7/Garrison -7/Factory (discovered 2 exits: [*Low] / Gar) -7/Garrison -6/Factory -6/Lower Caves -6/Lower Caves (discovered 2 exits: [*Fac] / *Zio) -6/Zion (discovered 1 exit: [*Pro]) History --------- Turn | Location | Event 2 | -11/Scrapyard | Met Revision 17 10 | -11/Scrapyard | Discovered new exit (range 15) 92 | -11/Scrapyard | Entered Materials 133 | -10/Materials | Central database locked down 140 | -10/Materials | Identified exit to Mines 303 | -10/Materials | Build established: Mutant 327 | -10/Materials | Entered Mines 327 | -10/Mines | Discovered new exit (range 10) 342 | -10/Mines | Learned Materials interactive machine intel 344 | -10/Mines | Assisted by bots powering up and referring to "LRC-V3" 350 | -10/Mines | Deemed a non-threat by the Exiles lab entrance 350 | -10/Mines | Discovered new exit (range 5) 444 | -10/Mines | Discovered new exit (range 7) 466 | -10/Mines | Found a hidden stash of uninstalled traps 608 | -10/Mines | Learned Materials stockpile data 615 | -10/Mines | Received a Rocket Launcher from a helpful Derelict 669 | -10/Mines | Entered Exiles 669 | -10/Exiles | Accompanied by 3 allies 682 | -10/Exiles | Discovered new exit (range 15) 691 | -10/Exiles | Met 8R-AWN 702 | -10/Exiles | Met EX-HEX 732 | -10/Exiles | Met EX-DEC 747 | -10/Exiles | Learned location of Zion (-6) 765 | -10/Exiles | Met EX-BIN 1148 | -10/Exiles | Aligned with FarCom system 1149 | -10/Exiles | Given EX-Vault access code 1176 | -10/Exiles | Opened EX-Vault 1185 | -10/Exiles | Found Gui. Plasma Cannon 1188 | -10/Exiles | Found YOLO Cannon 1190 | -10/Exiles | Found Deploy-a-Sentry 1193 | -10/Exiles | Found Deploy-a-Sentry 1195 | -10/Exiles | Found Deploy-a-Sentry 1203 | -10/Exiles | Build established: Hauler-Mutant 1222 | -10/Exiles | Warned to stay clear of 0b10 Research branches 1550 | -10/Exiles | Attacked by the Exiles 1560 | -10/Exiles | Allies destroyed EX-HEX 1563 | -10/Exiles | DAS Turret deployed 1564 | -10/Exiles | DAS Turret deployed 1566 | -10/Exiles | DAS Turret deployed 1619 | -10/Exiles | Core integrity fell below 50% 1638 | -10/Exiles | Destroyed 8R-AWN 1650 | -10/Exiles | Found Prototype Device 1662 | -10/Exiles | Lost 3 parts (1p2w) 1865 | -10/Exiles | Destroyed EX-BIN 1926 | -10/Exiles | Destroyed EX-DEC 1945 | -10/Exiles | Found Deploy-a-Sentry 2056 | -10/Exiles | Discovered new exit (range 14) 2069 | -10/Exiles | Stole three prototypes: Gui. Plasma Cannon, YOLO Cannon, Deploy-a-Sentry 2069 | -10/Exiles | Entered Mines 2085 | -9/Mines | Core integrity fell below 20% 2428 | -9/Mines | Discovered new exit (range 5) 2447 | -9/Mines | Entered Materials 2447 | -8/Materials | Evolved 4 slots: Utility x4 2448 | -8/Materials | Loaded intel: 19 interactive machine locations 2637 | -8/Materials | Lost 5 parts (1p2n1u1w) 2936 | -8/Materials | Discovered new exit (range 3) 3001 | -8/Materials | Lost 3 parts (1n1u1w) 3004 | -8/Materials | Build established: Scavenger-Mutant 3059 | -8/Materials | Entered Factory 3059 | -7/Factory | Evolved 2 slots: Utility x2 3123 | -7/Factory | Repaired Arm. Wheel 3161 | -7/Factory | Repaired Flak Cannon 3232 | -7/Factory | Garrison activated, responded to threat 3269 | -7/Factory | Identified exit to Garrison 3269 | -7/Factory | Entered Garrison 3276 | -7/Garrison | Installed Relay Interface Framework 3310 | -7/Garrison | Triggered checkpoint 3345 | -7/Garrison | Garrison Relay disabled 3494 | -7/Garrison | Lost 4 parts (1n2u1w) 3662 | -7/Garrison | Triggered checkpoint 3777 | -7/Garrison | Discovered new exit (range 15) 3801 | -7/Garrison | Entered Factory 4175 | -7/Factory | Fabricated Arm. Huge Wheel? 4245 | -7/Factory | Fabricated Arm. Huge Wheel? 4492 | -7/Factory | Build established: Hauler-Mutant 4598 | -7/Factory | Identified exit to Garrison 4628 | -7/Factory | Discovered new exit (range 3) 4938 | -7/Factory | Fabricated Powered Armor? 5167 | -7/Factory | Entered Garrison 5174 | -7/Garrison | Expanded RIF knowledge: Watcher Feeds 5258 | -7/Garrison | Triggered checkpoint 5339 | -7/Garrison | Garrison Relay disabled 5440 | -7/Garrison | Core integrity fell below 50% 5500 | -7/Garrison | Lost 3 parts (1n1u1w) 5573 | -7/Garrison | Lost 3 parts (2p1w) 5576 | -7/Garrison | Triggered checkpoint 5630 | -7/Garrison | Discovered new exit (range 10) 5646 | -7/Garrison | Entered Factory 5646 | -6/Factory | Evolved 2 slots: Utility x2 5954 | -6/Factory | Discovered new exit (range 8) 5996 | -6/Factory | First assault squad dispatched 6045 | -6/Factory | Lost 3 parts (1u2w) 6124 | -6/Factory | Entered Lower Caves 6136 | -6/Lower Caves | Learned Factory machine intel 6341 | -6/Lower Caves | Lost 3 parts (3u) 6591 | -6/Lower Caves | Discovered new exit (range 11) 6684 | -6/Lower Caves | Lost 5 parts (1n1u3w) 6765 | -6/Lower Caves | Entered another Lower Caves area 6819 | -6/Lower Caves | Spotted B-75 Beast 6836 | -6/Lower Caves | Core integrity fell below 50% 6853 | -6/Lower Caves | Destroyed B-75 Beast 6879 | -6/Lower Caves | Lost 6 parts (1p2u3w) 6906 | -6/Lower Caves | Discovered new exit (range 10) 7078 | -6/Lower Caves | Learned Factory terminal intel 7164 | -6/Lower Caves | Spotted 4J-LYF(f) 7165 | -6/Lower Caves | Encountered a Master Thief 7165 | -6/Lower Caves | Spotted VN-7N6(f) 7166 | -6/Lower Caves | Encountered a Master Thief 7166 | -6/Lower Caves | Spotted 1P-D7J(f) 7166 | -6/Lower Caves | Spotted 29-1A0(f) 7167 | -6/Lower Caves | Encountered a Master Thief 7167 | -6/Lower Caves | Encountered a Master Thief 7167 | -6/Lower Caves | Spotted DL-T8Y(f) 7167 | -6/Lower Caves | Destroyed 4J-LYF(f) 7168 | -6/Lower Caves | Encountered a Master Thief 7169 | -6/Lower Caves | YOLO Cannon stolen by Master Thief 7170 | -6/Lower Caves | Deploy-a-Sentry stolen by Master Thief 7176 | -6/Lower Caves | Gui. Plasma Cannon stolen by Master Thief 7201 | -6/Lower Caves | Destroyed DL-T8Y(f) 7300 | -6/Lower Caves | Learned 4 Factory zone layouts 7404 | -6/Lower Caves | Discovered new exit (range 8) 7415 | -6/Lower Caves | Entered Zion 7421 | -6/Zion | Build established: Scavenger-Mutant 7432 | -6/Zion | Given the Hacking Drone Bay 7435 | -6/Zion | Found Prototype Device 7494 | -6/Zion | Found Relay Coupler [Programmer] 7514 | -6/Zion | Discovered new exit (range 15) 7611 | -6/Zion | System corruption cleaned by Quarantine Array 7695 | -6/Zion | Found Relay Coupler [Programmer] 7702 | -6/Zion | Found Relay Coupler [Programmer] 7738 | -6/Zion | Identified Hacking Drone Bay 7768 | -6/Zion | RIF detected upon attempting to enter Zion 7768 | -6/Zion | Attacked by Zionites 7858 | -6/Zion | Spotted TR-1WT(B) 7858 | -6/Zion | Spotted Z2-VOD(B) 7969 | -6/Zion | Destroyed TR-1WT(B) 7991 | -6/Zion | Destroyed Z2-VOD(B) 8011 | -6/Zion | Lost 5 parts (1n2u2w) 8127 | -6/Zion | Core integrity fell below 20% 8189 | -6/Zion | Lost 4 parts (1p2u1w) 8345 | -6/Zion | Destroyed by 6D-0O6(z) with Makeshift Axe Last Messages --------------- 08267_ Acquired 10 matter. 08267_ Acquired 29 matter. 08267_ Acquired 19 matter. 08267_ Acquired 15 matter. 08270_ 5H-LSU(z) destroyed. 08271_ Acquired 20 matter. 08279_ Acquired Mak. Power Source. 08284_ OF-RBC(z) pulls a Mak. Hammer out of the Twisted Machinery. 08284_ OF-RBC(z) destroyed. 08290_ Acquired 11 matter. FZ-52G(z) bursts out of the Twisted Machinery. 08311_ FZ-52G(z) pulls a Mak. Shrapnel Gun out of the Twisted Machinery. 08311_ Connecting with Zion Terminal... 08311_ Current location identified: Zion 08314_ FZ-52G(z) destroyed. 08315_ Acquired 16 matter. 08329_ F9-591(z) pulls a Mak. Shrapnel Gun out of the Twisted Machinery. 08341_ Hvy. Battle Rifle destroyed. 08343_ Slug Cannon destroyed. 08343_ Adv. Heat Sink destroyed. Map ----- +----------------------------------------------------+ | ?????????????????????????????????????????????????? | | ?????????????????????????????????????????????????? | | ?????????????????????????????????????????????????? | | ?????????????????????????????????????????????????? | | ?????????????????????????????????????????????????? | | ?????????????????????????????????????????????????? | | ?????????????????????????????????????????????????? | | ?????????????????????????????????????????????????? | | ?????????????????????????????????????????????????? | | ???????????????????????????#######???????????????? | | ???????????????????????????#"""""#???????????????? | | ????????????????????????####" "????????????????? | | ????????????????????????#""## ##???????????????? | | ???????????????????####?##"# X#???????????????? | | ?????????????????""#"""##"""" #???????????????? | | ??????????????"""""""""""""" " ####????????????? | | ????????????? """"""" """" " = ##???????????? | | ???????????? """" " * # #???????????? | | ???????????? """" = " #???????????? | | ????????????????"""" "" ##???????????? | | ??????????????"""""" """ c #???????????? | | ??????????????#"""" "" ###??????????? | | ???????????????#" """ """#??????????? | | ???????????????#"" """ "##??????????? | | ???????????????#""" """ """###????????? | | ??????????????###"" @ """"""#####????? | | ???????? """" z """"""""""""#"#????? | | ???????? ""#"""" ""#?????? | | ?????? " """" "#?????? | | ????? * """ "#?????? | | ?????? """ "##????? | | ??????"""##"" " """ z ! "" ""#????? | | ??????????""""""""""" ! "" """#????? | | ????????????"#"""""#" !/ " """##????? | | ??????????????######"#" ""##?????? | | ???????????????????##"# " " = ""###?????? | | ????????????????????####" " "#""#?????? | | ?????????????????????#""" " """"##????? | | ?????????????????????##"" "" ""#????? | | ?????????????????????#"#" "" = ""#????? | | ?????????????????????##"" """ * ! ""##????? | | ??????????????????????#"" """" !/ = ""#"#????? | | ??????????????????????""" """" != ""#?###### | | ??????????????????????#"" #"""" ##??# "# | | ??????????????????????#"" #""" ###?# "" | | ???????????????????????"" """" """ * ### "" | | ??????????????????????""" """" "#"=! " | | ?????????????????????#"" " "!"/ = = | | ??????????????????????#" * * * * =/ | | ??????????????????????#"" * !""" | +----------------------------------------------------+ Best States ------------- Heat Dissipation 75 Energy Generation 23 Energy Capacity 590 Matter Stores 300 Matter Capacity 300 Sight Range 22 Robot Scan Range 20 Terrain Scan Range 24 Terrain Scan Density 10 Power Amplification 40 Armor Coverage 750 Resistance: KI 30 Resistance: TH 10 Propulsion Shielding 66 Thermal Conversion 60 Weapon Cycling 30 Evasion (%) 44 Offensive Hacking 21 Defensive Hacking 14 Relay Coupler Types 26 Relay Coupler Value 1 Item Schematics ----------------- Powered Armor | -7/Factory | Hacked Arm. Huge Wheel | -7/Factory | Hacked Lgt. Neutrino Core | -6/Factory | Scanalyzed Matter Compressor | -6/Factory | Scanalyzed Robot Schematics ------------------ M-28 Smith | -8/Materials | Hacked Fabricated ------------ Arm. Huge Wheel | x2 | -7/Factory Arm. Huge Wheel | x2 | -7/Factory Powered Armor | x2 | -7/Factory Alien Tech Used ----------------- None Achievements -------------- None Challenges ------------ None Game ------ Seed VisualTerrainReactor Manual? 0 Play Time 01:39:02 Cumulative 425.2 hours Start 2020.12.17 @ 06:32:11 End 2020.12.17 @ 08:36:39 Sessions 2 Manual Loads 0 Difficulty Rogue Special Mode None Game No. 159 Rogue 156 Adventurer 3 Explorer 0 Win Type - Total 8 Types 5/1/0/1/0/1/0/0/0 Lore% 90 Gallery% 94 Achievement% 78 Wizard Run 0 Options --------- ASCII 0 Keyboard 0 Movement Numpad Keybinds 0 Fullscreen 1 Font 18/SmallcapsGlow Map View 76x50 Tactical HUD 1 Map Filters NONE Filters NONE Steam 1 RUN: 2cabab01-5abb-4607-bfac-f3c4ac1eb779